bitfinex-derivatives/quotes_BNBF0:USTF0_20250521
["timestamp","ask_amount","ask_price","bid_price","bid_amount"]
[1747855049994,1.01264432,669.23,667.82,0.26010427]
[1747855051095,1.01264432,669.22,667.82,0.26010427]
[1747855052392,1.01264432,669.22,666.82,1.09034805]
[1747855052599,1.01264432,669.24,666.82,1.09034805]
[1747855052897,1.01264432,669.24,666.83,0.2602813]
[1747855055400,1.01264432,669.24,666.82,1.09034805]
[1747855055697,1.01264432,669.37,666.82,1.09034805]
[1747855055894,1.01264432,669.37,666.83,0.26026573]
[1747855057703,1.01264432,669.45,666.83,0.26026573]
[1747855058303,1.01264432,669.45,666.82,1.09034805]
[1747855058602,1.01264432,669.45,666.83,0.26024529]
[1747855058897,1.01264432,669.45,667.08,1.09034805]
[1747855059897,1.01264432,669.46,667.08,1.09034805]
[1747855062315,1.01264432,669.48,667.08,1.09034805]
[1747855063708,1.11186804,669.46,667.08,1.09034805]
[1747855064903,1.01264432,669.45,667.08,1.09034805]
[1747855066312,1.11186804,669.44,667.08,1.09034805]
[1747855067607,1.01264432,669.43,667.08,1.09034805]
[1747855070612,1.01264432,669.48,667.08,1.09034805]
[1747855072009,1.01264432,669.48,667.19,1.09034805]
[1747855072206,1.11186804,669.45,667.19,1.09034805]
[1747855073314,1.01264432,669.44,667.19,1.09034805]
[1747855079116,1.01264432,669.55,667.19,1.09034805]
[1747855082516,1.01264432,669.57,667.19,1.09034805]
[1747855085717,1.01264432,669.66,667.19,1.09034805]
[1747855087715,1.01264432,669.66,667.66,1.09034805]
[1747855088020,1.01264432,669.66,667.69,0.47193837]
[1747855088715,1.11186804,669.72,667.69,0.47193837]
[1747855089821,1.11186804,669.72,667.66,1.09034805]
[1747855090121,1.11186804,669.62,667.66,1.09034805]
[1747855091422,1.01264432,669.61,667.66,1.09034805]
[1747855093323,1.01264432,669.74,667.66,1.09034805]
[1747855094623,1.11186804,669.8,667.66,1.09034805]
[1747855095425,1.11186804,669.8,667.66,1.56228642]
[1747855095821,3.70622682,670.69,667.66,1.56228642]
[1747855096119,0.42913367,670.68,667.66,0.47193837]
[1747855096319,0.42913367,670.67,667.66,0.47193837]
[1747855096518,0.42913367,670.66,667.56,0.26004596]
[1747855096723,0.42913367,670.65,667.56,0.26004596]
[1747855096916,0.42913367,670.64,667.56,0.26004596]
[1747855097116,0.4291915,670.63,667.56,0.26004596]
[1747855098717,0.42926145,675.77,663.75,0.25988186]
[1747855099024,0.42922692,675.76,663.75,0.25988186]
[1747855099323,0.42922692,675.75,663.75,0.25988186]
[1747855099525,1.10953513,669.73,667.68,1.08376604]
[1747855099726,0.42922692,669.72,667.68,1.08376604]
[1747855100024,0.42922692,669.71,667.68,1.08376604]
[1747855100225,0.42922692,669.7,667.68,1.08376604]
[1747855100426,0.42922692,669.69,667.68,1.08376604]
[1747855100625,0.42922692,669.68,667.68,1.08376604]
[1747855100925,1.10953513,669.73,667.68,1.08376604]
[1747855101227,1.0194062,669.72,667.68,1.08376604]
[1747855102426,1.10953513,669.64,667.68,1.08376604]
[1747855103226,1.0194062,669.63,667.68,1.08376604]
[1747855103927,2.21907027,669.96,667.68,1.08376604]
[1747855104628,1.10944708,669.63,667.53,1.08425222]
[1747855105522,1.47926278,669.8,667.53,1.08425222]
[1747855105722,3.69815695,670.62,667.21,0.47188384]
[1747855106329,1.02085428,672.14,667.21,0.47188384]
[1747855107126,1.02085428,672.14,667.27,0.47188384]
[1747855107629,0.25989544,672.13,667.27,0.47188384]
[1747855108726,1.11128622,669.7,667.51,1.52151914]
[1747855108930,1.11128622,669.7,667.82,1.08585832]
[1747855109832,1.02085428,669.69,667.82,1.08585832]
[1747855110732,1.11128622,669.67,667.82,1.08585832]
[1747855111932,1.48171496,669.83,667.82,1.08585832]
[1747855112131,0.96545652,672.16,667.38,0.47188384]
[1747855112730,1.02137746,672.15,667.38,0.47188384]
[1747855113432,1.02137746,672.15,667.15,0.47188384]
[1747855113433,0.96545652,672.14,667.41,0.47188384]
[1747855113633,1.22535293,672.14,667.41,0.47188384]
[1747855114331,1.22535293,672.14,667.76,1.0865094]
[1747855114332,1.11248794,669.63,667.76,1.0865094]
[1747855115336,1.02137746,669.62,667.76,1.0865094]
[1747855117045,1.02137746,669.61,667.76,1.0865094]
[1747855118137,1.02137746,669.6,667.76,1.0865094]
[1747855119439,1.11248794,669.38,667.67,1.0865094]
[1747855120645,1.02137746,669.37,667.67,1.0865094]
[1747855121843,1.11248794,669.35,667.67,1.0865094]
[1747855123047,1.02137746,669.34,667.67,1.0865094]
[1747855124745,1.02137746,669.33,667.67,1.0865094]
[1747855126050,1.02137746,669.32,667.67,1.0865094]
[1747855127249,2.1338654,669.32,667.55,0.26018983]
[1747855127453,1.02137746,669.31,667.55,0.26018983]
[1747855128553,1.02137746,669.3,667.55,0.26018983]
[1747855130256,1.11248794,669.38,667.55,0.26018983]
[1747855130556,1.11248794,669.38,667.37,1.0865094]
[1747855131657,1.11248794,669.38,667.38,0.26021804]
[1747855133456,1.11248794,669.38,667.37,1.0865094]
[1747855133654,1.11248794,669.39,667.37,1.0865094]
[1747855134658,1.11248794,669.39,667.38,0.26021707]
[1747855136456,1.11248794,669.25,667.55,1.0865094]
[1747855142565,1.11248794,669.29,667.55,1.0865094]
[1747855143965,1.02137746,669.28,667.55,1.0865094]
[1747855145662,1.02137746,669.27,667.55,1.0865094]
[1747855146572,1.02137746,669.26,667.55,1.0865094]
[1747855148178,1.02137746,669.25,667.55,1.0865094]
[1747855149475,1.02137746,669.24,667.55,1.0865094]
[1747855150778,1.02137746,669.23,667.51,0.26023653]
[1747855151374,1.02137746,669.23,667.31,1.52243172]
[1747855151678,1.02137746,669.23,667.51,0.2602521]
[1747855151873,1.02137746,669.23,667.31,1.52243172]
[1747855152781,1.02137746,669.22,667.32,0.2602521]
[1747855154280,1.02137746,669.21,667.32,0.2602521]
[1747855154576,1.02137746,669.21,667.31,1.52243172]
[1747855155574,1.11248794,669.22,667.31,1.52243172]
[1747855155575,1.02137746,669.2,667.31,1.52243172]
[1747855155781,1.02137746,669.2,667.32,0.26025405]
[1747855156981,1.02137746,669.19,667.32,0.26025405]
[1747855157376,1.02137746,669.19,667.31,1.52243172]
[1747855157682,1.02137746,669.19,667.32,0.26025405]
[1747855158484,1.02137746,669.18,667.32,0.26025405]
[1747855159883,1.11248794,669.16,667.32,0.26025405]
[1747855160381,1.11248794,669.16,667.3,0.47188384]
[1747855161284,1.02137746,669.15,667.3,0.47188384]
[1747855161583,1.02137746,669.15,667.31,0.26025502]
[1747855162684,1.02137746,669.15,667.44,0.47188384]
[1747855162885,1.02137746,669.14,667.44,0.47188384]
[1747855164286,1.02137746,669.13,667.44,0.47188384]
[1747855165783,1.02137746,669.12,667.44,0.47188384]
[1747855166186,1.02137746,669.12,667.31,0.26025502]
[1747855166387,1.02137746,669.12,667.26,1.0865094]
[1747855166686,1.02137746,669.11,667.31,0.26024432]
[1747855168789,1.02137746,669.1,667.31,0.26024432]
[1747855169490,1.02137746,669.1,667.26,1.0865094]
[1747855169790,1.02137746,669.1,667.31,0.26024432]
[1747855170090,1.02137746,669.09,667.31,0.26024432]
[1747855171590,2.22497589,669.67,667.31,0.26024432]
[1747855171591,1.02137746,669.32,667.31,0.26024432]
[1747855171783,0.43582698,669.31,667.31,0.26024432]
[1747855171988,0.43582698,669.3,667.31,0.26024432]
[1747855172183,1.02137746,669.32,667.31,0.26024432]
[1747855172392,0.43585219,669.31,667.26,1.0865094]
[1747855172687,1.45722965,669.3,667.26,1.0865094]
[1747855172891,0.43600428,669.29,667.26,1.0865094]
[1747855173092,1.02137746,669.3,667.26,1.0865094]
[1747855173291,0.43602825,669.29,667.26,1.0865094]
[1747855173486,0.43621887,669.28,667.26,1.0865094]
[1747855173688,1.02137746,669.3,667.27,0.26021902]
[1747855174191,1.02137746,669.27,667.27,0.26021902]
[1747855175493,1.02137746,669.27,667.26,1.0865094]
[1747855175693,1.02137746,669.41,667.27,0.26020637]
[1747855177797,1.02137746,669.41,667.49,0.47188384]
[1747855177998,1.02137746,669.52,667.49,0.47188384]
[1747855179298,1.02137746,669.51,667.86,1.0865094]
[1747855180600,1.11248794,669.58,667.86,1.0865094]
[1747855180795,0.43638148,669.57,667.86,1.0865094]
[1747855181000,0.43638148,669.56,667.86,1.0865094]
[1747855181200,1.11248794,669.58,667.86,1.0865094]
[1747855181497,0.43632476,669.57,667.86,1.0865094]
[1747855181702,0.43632476,669.56,667.86,1.0865094]
[1747855181900,1.11248794,669.58,667.86,1.0865094]
[1747855182100,1.02137746,669.56,667.8,1.0865094]
[1747855185005,1.11248794,669.57,667.8,1.0865094]
[1747855187306,0.4361252,669.56,667.8,1.0865094]
[1747855187508,0.4361252,669.55,667.8,1.0865094]
[1747855187704,1.11248794,669.58,667.8,1.0865094]
[1747855187900,0.4361228,669.57,667.8,1.0865094]
[1747855188105,0.4361228,669.56,667.8,1.0865094]
[1747855188398,0.4361228,669.55,667.8,1.0865094]
[1747855188599,1.45750026,669.54,667.8,1.0865094]
[1747855188804,0.4361228,669.53,667.8,1.0865094]
[1747855189005,0.4361228,669.52,667.8,1.0865094]
[1747855189205,0.4361228,669.51,667.8,1.0865094]
[1747855189405,0.4361228,669.5,667.8,1.0865094]
[1747855189605,0.4361228,669.49,667.8,1.0865094]
[1747855189806,1.11248794,669.41,667.72,0.26011788]
[1747855190513,0.43606634,669.4,667.6,1.0865094]
[1747855190710,1.11248794,669.41,667.72,0.26017135]
[1747855191111,1.11248794,669.41,667.6,1.0865094]
[1747855191410,1.02137746,669.4,667.6,1.0865094]
[1747855191713,1.02137746,669.4,667.61,0.26017135]
[1747855192614,0.43603566,669.39,667.61,0.26017135]
[1747855192815,0.43603566,669.38,667.61,0.26017135]
[1747855193015,0.43603566,669.37,667.61,0.26017135]
[1747855193208,0.43603566,669.36,667.61,0.26017135]
[1747855193409,1.02137746,669.4,667.61,0.26017135]
[1747855193608,1.02137746,669.37,667.6,1.0865094]
[1747855193812,1.11248794,669.34,667.6,1.0865094]
[1747855194615,1.11248794,669.34,667.61,0.26018789]
[1747855194915,1.02137746,669.33,667.61,0.26018789]
[1747855196515,1.02137746,669.33,667.6,1.0865094]
[1747855196814,1.02137746,669.32,667.55,1.0865094]
[1747855197816,1.02137746,669.32,667.56,0.2601947]
[1747855198117,1.02137746,669.31,667.56,0.2601947]
[1747855199519,1.02137746,669.31,667.55,1.0865094]
[1747855199723,1.02137746,669.3,667.55,1.0865094]
[1747855200721,1.02137746,669.3,667.56,0.26019664]
[1747855201117,1.11248794,669.32,667.56,0.26019664]
[1747855202521,1.11248794,669.32,667.55,1.0865094]
[1747855202721,1.11248794,669.33,667.55,1.0865094]
[1747855203718,1.11248794,669.33,667.56,0.26019567]
[1747855204522,1.11248794,669.31,667.56,0.26019567]
[1747855205420,1.11248794,669.31,667.55,1.0865094]
[1747855205618,1.02137746,669.3,667.55,1.0865094]
[1747855205817,1.02137746,669.3,667.56,0.26020345]
[1747855208525,1.02137746,669.3,667.55,1.0865094]
[1747855208725,1.02137746,669.29,667.55,1.0865094]
[1747855209726,1.02137746,669.28,667.72,1.0865094]
[1747855211125,1.02137746,669.27,667.72,1.0865094]
[1747855212427,1.02137746,669.26,667.72,1.0865094]
[1747855213432,0.43698398,669.25,667.72,1.0865094]
[1747855213730,0.43698398,669.24,667.72,1.0865094]
[1747855213925,0.43698398,669.23,667.72,1.0865094]
[1747855214130,1.02137746,669.23,667.72,1.0865094]
[1747855214325,0.43701807,669.22,667.72,1.0865094]
[1747855214526,0.43701807,669.21,667.72,1.0865094]
[1747855214728,1.02137746,669.23,667.72,1.0865094]
[1747855215025,0.43705907,669.22,667.72,1.0865094]
[1747855215228,0.43709712,669.21,667.72,1.0865094]
[1747855215428,1.11248794,669.2,667.67,1.0865094]
[1747855217033,1.02137746,669.19,667.67,1.0865094]
[1747855218933,2.1338654,669.18,667.67,1.0865094]
[1747855219134,0.43718084,669.17,667.67,1.0865094]
[1747855219536,0.43725926,669.16,667.67,1.0865094]
[1747855219731,0.43725926,669.15,667.67,1.0865094]
[1747855219930,0.43725926,669.14,667.67,1.0865094]
[1747855220133,0.43725926,669.13,667.67,1.0865094]
[1747855220837,1.02137746,669.14,667.67,1.0865094]
[1747855221436,1.02137746,669.17,667.67,1.0865094]
[1747855222537,1.11248794,669.2,667.67,1.0865094]
[1747855223934,1.02137746,669.31,667.67,1.0865094]
[1747855225338,1.11248794,669.32,667.67,1.0865094]
[1747855226332,1.11248794,669.43,667.67,1.0865094]
[1747855227634,1.02137746,669.42,667.67,1.0865094]
[1747855229442,1.02137746,669.41,667.99,1.0865094]
[1747855230340,1.02137746,669.4,667.99,1.0865094]
[1747855232239,1.02137746,669.39,667.99,1.0865094]
[1747855233540,1.02137746,669.38,667.99,1.0865094]
[1747855234539,0.43695006,669.37,667.99,1.0865094]
[1747855234740,1.02137746,669.38,667.99,1.0865094]
[1747855234941,0.43695132,669.37,667.99,1.0865094]
[1747855235135,1.02137746,669.38,667.99,1.0865094]
[1747855235342,1.02137746,669.38,667.87,0.26010232]
[1747855235343,1.02137746,669.36,667.87,0.26010232]
[1747855235544,1.02137746,669.36,667.57,2.60894112]
[1747855236340,1.02137746,669.35,667.57,2.60894112]
[1747855236741,1.02137746,669.35,667.58,0.26015677]
[1747855237337,1.02137746,669.34,667.58,0.26015677]
[1747855238243,1.02137746,669.33,667.58,0.26015677]
[1747855238443,1.02137746,669.33,667.57,2.60894112]
[1747855238943,1.02137746,669.33,667.58,0.26014704]
[1747855239345,1.02137746,669.32,667.58,0.26014704]
[1747855239947,1.02137746,669.32,667.58,0.73203088]
[1747855241345,1.02137746,669.31,667.58,0.73203088]
[1747855241546,1.02137746,669.31,667.58,0.47188384]
[1747855241745,1.02137746,669.31,667.58,0.73205908]
[1747855242946,1.02137746,669.3,667.58,0.73205908]
[1747855244253,1.02137746,669.29,667.58,0.73205908]
[1747855246147,1.02137746,669.28,667.7,0.47188384]
[1747855247147,1.02137746,669.27,667.7,0.47188384]
[1747855247947,1.02137746,669.27,667.63,0.26016455]
[1747855249147,1.02137746,669.26,667.77,1.0865094]
[1747855250649,1.11248794,669.48,667.77,1.0865094]
[1747855252249,1.11248794,669.55,667.77,1.0865094]
[1747855252450,0.43687447,669.54,667.77,1.0865094]
[1747855252651,0.43687447,669.53,667.77,1.0865094]
[1747855252851,1.11248794,669.55,667.77,1.0865094]
[1747855253050,0.43687496,669.54,667.77,1.0865094]
[1747855253267,1.11248794,669.55,667.77,1.0865094]
[1747855253455,0.43685603,669.54,667.77,1.0865094]
[1747855253649,1.11248794,669.55,667.77,1.0865094]
[1747855253850,1.45588446,669.54,667.77,1.0865094]
[1747855254050,1.01902807,669.54,667.77,1.0865094]
[1747855255751,1.11248794,669.51,667.77,1.0865094]
[1747855257553,1.11248794,669.51,667.95,0.47188384]
[1747855259451,0.43679942,669.5,667.95,0.47188384]
[1747855259656,1.01902807,669.5,667.95,0.47188384]
[1747855260258,1.01902807,669.5,667.98,0.47188384]
[1747855261457,1.11248794,669.48,667.98,0.47188384]
[1747855263060,1.11248794,669.48,668.0,0.47188384]
[1747855263756,1.01902807,669.71,668.0,0.47188384]
[1747855265065,1.01902807,669.7,668.0,0.47188384]
[1747855265259,1.01902807,669.7,667.89,0.26007219]
[1747855265459,1.01902807,669.7,667.71,1.0865094]
[1747855266567,1.01902807,669.69,667.71,1.0865094]
[1747855266766,1.01902807,669.69,667.72,0.26008385]
[1747855267762,1.01902807,669.69,667.87,0.47188384]
[1747855268165,1.01902807,669.68,667.87,0.47188384]
[1747855270067,1.45518338,669.67,667.87,0.47188384]
[1747855270268,0.43615531,669.66,667.87,0.47188384]
[1747855270768,1.01926976,669.65,667.87,0.47188384]
[1747855270967,0.43615531,669.64,668.01,0.47188384]
[1747855272870,1.11337074,669.56,668.01,0.47188384]
[1747855273874,1.11337074,669.56,667.88,1.0865094]
[1747855274774,1.01926976,669.55,667.88,1.0865094]
[1747855276075,1.11337074,669.56,667.88,1.0865094]
[1747855276476,0.43658269,669.55,667.88,1.0865094]
[1747855276671,1.11337074,669.56,667.88,1.0865094]
[1747855276869,0.43660288,669.55,667.88,1.0865094]
[1747855277070,0.43660287,669.54,667.88,1.0865094]
[1747855277273,1.11337074,669.56,667.88,1.0865094]
[1747855277479,1.45596921,669.55,667.88,1.0865094]
[1747855277671,0.43669945,669.54,667.88,1.0865094]
[1747855278578,1.01926976,669.55,667.88,1.0865094]
[1747855278978,2.22497589,669.81,667.88,1.0865094]
[1747855278979,1.11337074,669.5,667.91,0.47188384]
[1747855280281,1.01926976,669.49,667.91,0.47188384]
[1747855281883,1.01926976,669.49,667.89,0.26010329]
[1747855282484,1.11337074,669.32,667.89,0.26010329]
[1747855283085,1.48331726,669.47,667.89,0.26010329]
[1747855283284,3.70829315,670.21,667.89,0.26010329]
[1747855284684,1.0209203,670.51,667.89,0.26010329]
[1747855285588,0.96622536,671.26,667.89,0.26010329]
[1747855286087,0.96622536,673.09,667.89,0.26010329]
[1747855286587,1.11462005,669.1,667.89,0.26010329]
[1747855287389,2.22924011,669.36,667.89,0.26010329]
[1747855287588,5.20156027,670.14,667.89,0.26010329]
[1747855288189,1.01964871,670.51,667.89,0.26010329]
[1747855290187,1.11331015,669.09,667.48,1.08843177]
[1747855290789,1.11331015,669.09,667.49,0.26028617]
[1747855291490,1.02398525,669.08,667.49,0.26028617]
[1747855293693,1.11331015,669.03,667.49,0.26028617]
[1747855295494,1.11331015,669.03,667.22,1.52512482]
[1747855295694,1.11331015,668.95,667.21,1.08843177]
[1747855295888,1.11331015,668.95,667.49,0.26032316]
[1747855296088,1.11331015,668.95,667.21,1.08843177]
[1747855296494,1.48441353,669.08,667.21,1.08843177]
[1747855296694,3.71103383,669.87,666.54,2.18168382]
[1747855296888,1.02111503,669.94,667.22,0.26033777]
[1747855297389,1.02111503,669.94,667.22,0.26035919]
[1747855298690,1.02111503,669.94,666.51,0.46996042]
[1747855298889,1.10978248,668.93,667.04,1.08562012]
[1747855299794,1.02111503,668.92,667.04,1.08562012]
[1747855300593,1.02111503,668.91,667.04,1.08562012]
[1747855301692,2.21956496,669.3,667.04,1.08562012]
[1747855301892,3.69927493,669.73,666.56,0.46996042]
[1747855302092,0.96092244,671.4,666.55,0.46996042]
[1747855302288,1.01951886,671.26,666.55,0.46996042]
[1747855302794,0.26019664,671.25,666.55,0.46996042]
[1747855304295,1.10777641,668.99,667.05,1.08284558]
[1747855305200,1.01951886,668.98,667.05,1.08284558]
[1747855306599,1.01951886,668.97,667.05,1.08284558]
[1747855307605,1.01951886,668.96,667.05,1.08284558]
[1747855309607,1.10777641,668.9,666.84,0.26039523]
[1747855310510,1.10777641,668.9,666.8,2.60014404]
[1747855311311,2.21555283,669.17,666.8,2.60014404]
[1747855311512,2.21555283,669.17,666.52,0.46996042]
[1747855312012,0.26040303,669.68,666.52,0.46996042]
[1747855312912,0.26024723,671.34,666.53,0.26024723]
[1747855313510,0.26024723,671.34,666.52,0.46996042]
[1747855314715,0.2602375,671.34,666.53,0.2602375]
[1747855316513,0.2602375,671.34,666.52,0.46996042]
[1747855317714,0.26022388,671.34,666.53,0.26022388]
[1747855318518,0.96092244,671.17,666.62,0.46996042]
[1747855321720,0.96092244,670.52,666.74,0.46996042]
[1747855323527,0.96092244,671.46,666.61,0.26027643]
[1747855323927,0.26021999,671.45,666.61,0.26027643]
[1747855329832,0.26032024,673.62,662.98,0.26032024]
[1747855331734,0.96926565,671.55,666.31,0.47444042]
[1747855334734,0.96926565,670.96,667.1,0.47444042]
[1747855337232,0.96926565,671.06,667.06,0.47444042]
[1747855338737,0.26019859,671.05,667.06,0.47444042]
[1747855338938,0.26019859,671.05,666.83,0.47444042]
[1747855339937,0.26019859,671.05,665.67,0.96864919]
[1747855341039,0.2602521,671.04,664.61,0.2602521]
[1747855341834,0.26010427,676.85,662.05,0.26010427]
[1747855343937,0.2601169,676.84,662.05,0.2601169]
[1747855345139,1.02011359,676.83,662.05,0.2601169]
[1747855347041,0.96829816,670.93,666.97,0.47420528]
[1747855348339,2.23097744,668.93,666.97,0.47420528]
[1747855348543,1.11548872,668.63,666.97,0.47420528]
[1747855349539,1.48731829,668.78,666.97,0.47420528]
[1747855349742,5.20561404,669.82,666.97,0.47420528]
[1747855350341,0.96829816,670.8,666.62,0.47420528]
[1747855350844,0.26031634,670.79,666.62,0.47420528]
[1747855352545,0.96829816,670.8,666.62,0.47420528]
[1747855352748,1.1162857,668.42,666.78,1.09499292]
[1747855353846,1.02095639,668.41,666.78,1.09499292]
[1747855354941,1.1162857,668.42,666.78,1.09499292]
[1747855355140,0.26046539,669.75,666.78,1.09499292]
[1747855355341,0.26046539,669.75,666.39,0.47420528]
[1747855355548,0.96829816,670.9,666.39,0.47420528]
[1747855356042,0.96829816,670.9,665.22,0.96816912]
[1747855356246,0.2602774,670.89,665.96,0.2602774]
[1747855357342,0.26018983,674.36,663.46,0.26018983]
[1747855361946,0.26025502,674.35,663.46,0.26025502]
[1747855362747,1.11619584,668.63,667.08,1.09426072]
[1747855363446,1.48826112,668.77,667.08,1.09426072]
[1747855363645,5.20891395,669.73,666.8,1.53328718]
[1747855363848,5.20891395,669.73,665.02,4.40516531]
[1747855364948,0.2603144,669.85,664.91,0.2603144]
[1747855365346,0.96778912,671.19,666.72,0.47313814]
[1747855365548,0.96778912,670.86,666.72,0.47313814]
[1747855365953,0.2601947,670.85,665.63,0.2601947]
[1747855373854,0.26006053,670.84,665.63,0.26006053]
[1747855381767,0.96210634,671.57,667.12,0.46950575]
[1747855384476,0.96210634,672.01,667.0,0.46950575]
[1747855384964,2.21621978,669.76,667.36,1.51758801]
[1747855385267,2.21621978,669.76,668.13,0.64871129]
[1747855385268,1.10810989,669.51,668.13,0.64871129]
[1747855387169,2.21621978,669.76,668.13,0.64871129]
[1747855387362,5.1711795,670.53,667.11,0.46950575]
[1747855388769,1.10411643,670.43,668.78,0.64589761]
[1747855389874,0.98816568,670.42,668.78,0.64589761]
[1747855391672,1.10411643,670.4,668.59,0.64589761]
[1747855392575,1.47215525,670.55,668.59,0.64589761]
[1747855392770,0.25989156,670.69,667.94,1.51100718]
[1747855392969,0.25989156,670.69,667.51,2.16148001]
[1747855394377,1.10208558,670.41,668.52,0.64499688]
[1747855395278,0.98831713,670.4,668.52,0.64499688]
[1747855396381,1.10208558,669.68,667.87,1.07685453]
[1747855397583,1.46944744,669.84,667.87,1.07685453]
[1747855397884,0.95796668,672.21,667.8,0.26007802]
[1747855398281,0.98703323,672.2,667.8,0.26007802]
[1747855398883,0.25995563,672.19,667.8,0.26007802]
[1747855399981,0.95796668,672.07,667.8,0.26007802]
[1747855400483,1.10066925,669.68,667.8,0.26007802]
[1747855400681,1.10066925,669.68,667.71,0.64410988]
[1747855401780,1.10066925,669.68,667.72,0.26006928]
[1747855401987,0.98703323,669.67,667.72,0.26006928]
[1747855403186,2.20133851,670.01,667.72,0.26006928]
[1747855403388,0.95796668,672.04,667.72,0.26006928]
[1747855403584,0.43098525,670.73,666.89,0.46696019]
[1747855403785,0.43098525,670.72,666.89,0.46696019]
[1747855403985,0.43098525,670.71,666.89,0.46696019]
[1747855404284,0.43098525,670.7,666.89,0.46696019]
[1747855404482,0.43098525,670.69,666.89,0.46696019]
[1747855404782,0.95796668,672.04,667.85,0.64357459]
[1747855404783,1.10021509,669.82,667.85,0.64357459]
[1747855405487,0.25992456,670.78,667.23,1.07447913]
[1747855405690,0.43078878,670.74,666.9,0.25992456]
[1747855405988,0.43079156,670.73,667.06,0.46696019]
[1747855406187,0.98562551,670.74,667.06,0.46696019]
[1747855406988,0.43079022,670.73,667.06,0.46696019]
[1747855407287,1.09998685,669.83,667.86,0.64328764]
[1747855407483,0.43177778,669.82,667.86,0.64328764]
[1747855407688,1.09998685,669.83,667.86,0.64328764]
[1747855408291,0.98562551,669.82,667.86,0.64328764]
[1747855409189,1.46664914,669.99,667.86,0.64328764]
[1747855409490,0.98590708,669.81,667.79,0.64328764]
[1747855411291,0.98590708,669.8,667.79,0.64328764]
[1747855412791,2.08614346,669.83,667.89,0.64328764]
[1747855413992,2.19997371,670.17,667.89,0.64328764]
[1747855414186,0.43211342,670.16,667.62,0.26004498]
[1747855414392,0.43211342,670.15,667.62,0.26004498]
[1747855414592,0.43211342,670.14,667.62,0.26004498]
[1747855414791,0.43211342,670.13,667.62,0.26004498]
[1747855415093,0.43234522,670.12,667.62,0.26004498]
[1747855415290,0.43234522,670.11,667.62,0.26004498]
[1747855415490,0.43234522,670.1,667.62,0.26004498]
[1747855415690,0.43234522,670.09,667.38,0.46696019]
[1747855415892,0.43234522,670.08,667.62,0.26005179]
[1747855416089,0.43234522,670.07,667.62,0.26005179]
[1747855416289,0.43234522,670.06,667.38,0.46696019]
[1747855416494,0.43234522,670.05,667.38,0.46696019]
[1747855416789,0.43234522,670.04,667.5,0.46696019]
[1747855416995,1.10332268,669.91,668.13,0.64504959]
[1747855418094,0.98835505,669.9,668.13,0.64504959]
[1747855419294,1.10332268,669.93,668.28,0.64504959]
[1747855421792,0.98835505,669.92,668.18,0.64504959]
[1747855422196,0.43356017,669.91,668.18,0.64504959]
[1747855422396,0.43356017,669.9,668.18,0.64504959]
[1747855422596,0.98835505,669.92,668.18,0.64504959]
[1747855422795,0.43356528,669.91,668.18,0.64504959]
[1747855422997,0.43356528,669.9,668.18,0.64504959]
[1747855423296,0.98835505,669.9,668.18,0.64504959]
[1747855423797,0.4335719,669.89,668.18,0.64504959]
[1747855423998,0.98835505,669.9,668.18,0.64504959]
[1747855424297,0.43504211,669.89,668.18,0.64504959]
[1747855424499,0.98835505,669.9,668.18,0.64504959]
[1747855425092,0.98835505,669.89,668.4,0.64504959]
[1747855425296,1.10332268,669.87,668.4,0.64504959]
[1747855427794,1.10332268,669.9,668.58,0.64504959]
[1747855428401,0.43598787,669.89,668.58,0.64504959]
[1747855428601,0.43598787,669.88,668.58,0.64504959]
[1747855428800,1.10332268,669.9,668.58,0.64504959]
[1747855428801,1.42434292,669.87,668.58,0.64504959]
[1747855429101,0.98835505,669.87,668.58,0.64504959]
[1747855429299,0.43622162,669.86,668.58,0.64504959]
[1747855429492,0.98835505,669.87,668.58,0.64504959]
[1747855429692,0.43640497,669.86,668.58,0.64504959]
[1747855429895,1.42476002,669.85,668.63,0.64504959]
[1747855430102,0.98835505,669.85,668.63,0.64504959]
[1747855431001,0.98835505,669.88,668.63,0.64504959]
[1747855431503,0.43661979,669.87,668.63,0.64504959]
[1747855431697,0.43661979,669.86,668.63,0.64504959]
[1747855431899,0.43661979,669.85,668.63,0.64504959]
[1747855432100,1.42497484,669.84,668.73,0.64504959]
[1747855432400,0.43661979,669.83,668.73,0.64504959]
[1747855433802,0.98835505,669.82,668.73,0.64504959]
[1747855434002,0.43735315,669.81,668.73,0.64504959]
[1747855434300,0.98835505,669.82,668.73,0.64504959]
[1747855434502,0.43747629,669.81,668.73,0.64504959]
[1747855434906,0.43747629,669.81,668.7,0.64504959]
[1747855435104,0.98835505,669.8,668.7,0.64504959]
[1747855435303,0.43747629,669.79,668.7,0.64504959]
[1747855436105,0.43765392,669.78,668.7,0.64504959]
[1747855436307,0.43765392,669.77,668.7,0.64504959]
[1747855436503,1.10332268,669.83,668.7,0.64504959]
[1747855436504,1.42600897,669.76,668.7,0.64504959]
[1747855436704,0.43765392,669.75,668.7,0.64504959]
[1747855436905,0.98835505,669.76,668.7,0.64504959]
[1747855437604,0.43787005,669.75,668.7,0.64504959]
[1747855437805,1.10332268,669.66,668.6,0.64504959]
[1747855438707,0.98835505,669.65,668.6,0.64504959]
[1747855439706,0.43835804,669.64,668.6,0.64504959]
[1747855439906,0.98835505,669.65,668.6,0.64504959]
[1747855440106,2.09167773,669.63,668.62,0.64504959]
[1747855441409,0.98835505,669.62,668.62,0.64504959]